bitfinex/quotes_SOLUSD_20220211
["timestamp","ask_amount","ask_price","bid_price","bid_amount"]
[1644603728815,24.4323,105.99,105.93,4.719]
[1644603729516,23.9323,105.99,105.93,4.719]
[1644603729715,0.04146614,106.0,105.94,62.63]
[1644603729914,0.04146614,106.01,105.95,98.26149968]
[1644603730118,0.04146614,106.01,105.95,102.97749968]
[1644603730315,0.04146614,106.01,105.95,103.22749968]
[1644603730714,42.2067,106.02,105.95,117.38259968]
[1644603730915,37.53016614,106.02,105.95,117.38259968]
[1644603731616,23.37476614,106.02,105.95,117.38259968]
[1644603731815,23.37476614,106.02,105.95,112.66659968]
[1644603731816,4.716,106.01,105.95,112.66659968]
[1644603732418,4.716,106.01,105.95,56.03659968]
[1644603732619,4.716,106.01,105.95,55.78659968]
[1644603733115,4.716,106.01,105.95,41.63149968]
[1644603733515,4.716,106.01,105.95,41.88149968]
[1644603734115,4.716,106.01,105.95,98.51149968]
[1644603735218,23.37476614,106.02,105.95,117.38239968]
[1644603735415,4.716,106.01,105.95,117.38239968]
[1644603735615,4.716,106.01,105.96,6.0]
[1644603737227,4.716,106.01,105.95,112.66639968]
[1644603738431,4.716,106.01,105.95,112.41639968]
[1644603739330,4.716,106.01,105.95,98.26149968]
[1644603740531,4.716,106.01,105.95,112.41669968]
[1644603740736,37.53056614,106.02,105.95,112.66669968]
[1644603741033,4.716,106.01,105.95,112.66669968]
[1644603742936,4.716,106.01,105.95,112.41669968]
[1644603743336,4.716,106.01,105.95,98.26149968]
[1644603744934,0.04146614,106.02,105.96,4.716]
[1644603745135,23.82176614,106.03,105.97,56.63]
[1644603745334,23.7803,106.03,105.98,10.716]
[1644603745535,0.04146614,106.04,105.99,36.69208061]
[1644603745735,4.75746614,106.06,105.99,36.94208061]
[1644603745939,0.04146614,106.05,105.99,36.94208061]
[1644603746236,4.75746614,106.06,105.99,36.94208061]
[1644603746836,14.1518,106.05,105.99,36.69208061]
[1644603747037,4.716,106.04,105.96,62.68951608]
[1644603747236,0.04146614,106.03,105.96,57.97351608]
[1644603747535,0.04146614,106.03,105.96,58.22351608]
[1644603747735,0.04146614,106.03,105.97,4.716]
[1644603747938,4.716,106.02,105.96,58.22351608]
[1644603748137,4.75746614,106.03,105.98,46.0027938]
[1644603748340,36.6885,106.04,105.98,46.0027938]
[1644603749039,4.716,106.03,105.98,46.0027938]
[1644603750241,36.6885,106.04,105.98,46.0027938]
[1644603751545,36.6885,106.04,105.98,102.6327938]
[1644603751747,22.5353,106.04,105.98,102.6327938]
[1644603751948,22.5353,106.04,105.98,116.7837938]
[1644603752147,22.5353,106.04,105.96,1.59351608]
[1644603752344,4.75746614,106.03,105.96,1.59351608]
[1644603753149,14.1561,106.02,105.96,46.06216144]
[1644603753353,14.19756614,106.02,105.96,46.06216144]
[1644603757772,0.04146614,106.02,105.96,46.06216144]
[1644603757973,18.91176614,106.03,105.96,46.06216144]
[1644603758173,0.04146614,106.02,105.96,46.06216144]
[1644603758374,18.91176614,106.03,105.96,46.06216144]
[1644603758875,18.91176614,106.03,105.96,116.84606144]
[1644603759574,18.91176614,106.03,105.97,1.34351608]
[1644603762679,18.91176614,106.03,105.96,37.24173114]
[1644603762889,18.91176614,106.03,105.96,1.59351608]
[1644603763080,21.29543405,106.03,105.97,1.34351608]
[1644603763383,14.161,106.01,105.95,1.34351608]
[1644603763580,4.716,106.0,105.95,1.34351608]
[1644603763784,15.429,106.0,105.94,1.34351608]
[1644603763983,17.93077357,106.0,105.94,1.34351608]
[1644603764182,15.429,106.0,105.94,1.34351608]
[1644603764581,14.1615,105.99,105.94,1.34351608]
[1644603764782,4.718,105.98,105.94,1.34351608]
[1644603766086,18.8785,105.98,105.94,1.34351608]
[1644603768391,18.8785,105.98,105.93,1.34351608]
[1644603771094,18.8785,105.98,105.92,1.34351608]
[1644603773841,14.1605,105.98,105.92,1.34351608]
[1644603774342,13.6605,105.98,105.92,1.34351608]
[1644603774941,18.8812,105.97,105.92,1.34351608]
[1644603775142,14.1622,105.97,105.92,1.34351608]
[1644603776544,18.8785,105.98,105.92,1.34351608]
[1644603776746,14.1605,105.98,105.92,1.34351608]
[1644603782252,14.1605,105.98,105.92,1.59351608]
[1644603782449,14.1605,105.98,105.93,1.34351608]
[1644603782653,18.8785,105.98,105.93,1.34351608]
[1644603784452,18.8785,105.98,105.92,1.34351608]
[1644603784654,18.8785,105.98,105.92,7.34351608]
[1644603784855,18.8785,105.98,105.93,1.34351608]
[1644603785254,18.8785,105.98,105.92,7.34351608]
[1644603785452,18.8785,105.98,105.92,1.34351608]
[1644603788759,18.8785,105.98,105.93,1.34351608]
[1644603789257,14.1605,105.98,105.93,1.34351608]
[1644603790458,42.82936368,105.99,105.93,1.34351608]
[1644603790459,18.8798,105.97,105.93,1.34351608]
[1644603790758,14.1618,105.97,105.93,1.34351608]
[1644603791159,4.718,105.98,105.93,1.34351608]
[1644603791557,4.718,105.98,105.93,57.97351608]
[1644603791761,22.7085,105.99,105.94,1.34351608]
[1644603792782,22.7085,105.99,105.94,41.53966275]
[1644603793683,22.7085,105.99,105.95,1.34351608]
[1644603793882,36.8673,105.99,105.95,1.34351608]
[1644603800291,4.718,105.98,105.95,1.34351608]
[1644603800490,20.22759994,105.97,105.94,1.34351608]
[1644603800689,4.718,105.96,105.94,1.34351608]
[1644603801090,25.09216791,105.99,105.92,4.64048203]
[1644603801091,4.719,105.98,105.93,1.34351608]
[1644603801490,4.719,105.98,105.93,1.36751608]
[1644603801695,14.1639,105.96,105.93,1.34351608]
[1644603801891,7.75119997,105.95,105.93,1.36751608]
[1644603802091,10.78339994,105.95,105.93,1.34351608]
[1644603802291,6.06439994,105.95,105.93,1.34351608]
[1644603805394,6.06439994,105.95,105.94,1.34351608]
[1644603805593,48.6949,105.99,105.94,1.34351608]
[1644603805795,48.6949,105.99,105.94,6.06151608]
[1644603805996,53.4129,105.99,105.95,1.34351608]
[1644603806193,48.6949,105.99,105.95,1.34351608]
[1644603806392,62.854,105.99,105.95,1.34351608]
[1644603806595,67.572,105.99,105.95,1.34351608]
[1644603806996,4.75946614,106.01,105.95,1.34351608]
[1644603807194,0.04146614,106.01,105.95,58.22351608]
[1644603807395,0.04146614,106.01,105.97,1.34351608]
[1644603807595,23.5825,106.02,105.97,1.34351608]
[1644603807798,23.62396614,106.02,105.97,1.59351608]
[1644603807996,23.5825,106.02,105.98,42.72765329]
[1644603810396,23.5825,106.02,105.96,82.84321608]
[1644603810597,23.62396614,106.02,105.96,83.09321608]
[1644603811399,23.62396614,106.02,105.96,127.53722512]
[1644603812197,4.716,106.01,105.96,6.05951608]
[1644603812396,4.716,106.01,105.96,4.716]
[1644603813196,4.92234832,106.0,105.96,4.716]
[1644603813398,18.8749,105.99,105.96,4.716]
[1644603813598,6.06439994,105.98,105.96,4.716]
[1644603814299,6.06439994,105.98,105.94,24.51461608]
[1644603814498,6.06439994,105.98,105.95,6.0]
[1644603816901,10.78239994,105.98,105.95,6.0]
[1644603817701,10.78239994,105.98,105.95,7.34351608]
[1644603820204,6.06439994,105.98,105.95,7.34351608]
[1644603823207,0.04146614,106.0,105.95,7.34351608]
[1644603823409,14.19806614,106.01,105.95,7.34351608]
[1644603824713,4.716,106.0,105.95,7.34351608]
[1644603826539,4.716,106.0,105.95,78.12991608]
[1644603826747,4.716,106.0,105.96,1.34351608]
[1644603827140,4.716,106.0,105.97,41.1559551]
[1644603827339,18.91406614,106.01,105.97,41.1559551]
[1644603827539,4.75746614,106.01,105.97,41.1559551]
[1644603827839,4.716,106.01,105.97,41.1559551]
[1644603828642,4.716,106.01,105.97,112.1898551]
[1644603828840,4.716,106.01,105.97,113.53337118]
[1644603829041,4.716,106.01,105.98,6.0]
[1644603829244,4.716,106.01,105.98,6.25]
[1644603829441,4.716,106.01,105.98,0.25]
[1644603829643,4.716,106.01,105.98,14.4023]
[1644603830247,1.65,106.02,105.99,62.63]
[1644603830445,1.65,106.02,105.99,61.346]
[1644603830644,1.65,106.02,105.99,65.32318399]
[1644603830846,1.65,106.02,106.0,62.63]
[1644603831245,1.65,106.02,106.01,98.05414439]
[1644603831644,1.65,106.02,106.01,104.30414439]
[1644603831850,1.65,106.02,106.01,98.30414439]
[1644603832045,1.65,106.02,106.01,112.45224439]
[1644603833353,1.65,106.02,106.01,61.82224439]
[1644603835850,1.65,106.02,106.01,118.45224439]
[1644603837354,1.65,106.02,106.01,61.82224439]
[1644603838853,1.65,106.02,106.01,118.45224439]
[1644603839856,1.65,106.02,106.01,112.45224439]
[1644603840053,1.65,106.02,106.01,118.45224439]
[1644603840257,1.65,106.02,106.01,112.45224439]
[1644603840463,1.65,106.02,106.01,55.82224439]
[1644603840856,1.65,106.02,105.99,4.716]
[1644603841055,1.65,106.02,105.98,24.81931608]
[1644603841357,1.65,106.02,105.98,23.4758]
[1644603841758,1.65,106.02,105.97,57.97351608]
[1644603841955,1.65,106.02,105.98,42.86759305]
[1644603842555,1.65,106.02,105.98,36.86759305]
[1644603842855,1.65,106.02,105.98,107.89929305]
[1644603844657,1.65,106.02,105.98,109.24280913]
[1644603844960,1.65,106.02,105.98,107.89929305]
[1644603845156,1.65,106.02,105.98,109.24280913]
[1644603845357,1.65,106.02,105.98,113.95880913]
[1644603846059,1.65,106.02,105.98,113.70880913]
[1644603846259,1.65,106.02,105.98,107.64929305]
[1644603846458,1.65,106.02,105.98,93.49759305]
[1644603846658,1.65,106.02,105.98,36.86759305]
[1644603850066,1.65,106.02,105.97,1.34351608]
[1644603850264,4.716,106.01,105.96,1.34351608]
[1644603851065,5.74981849,106.01,105.96,1.34351608]
[1644603851264,4.716,106.01,105.96,1.34351608]
[1644603851864,18.8728,106.01,105.96,1.34351608]
[1644603852265,42.9455,106.01,105.96,1.34351608]
[1644603853063,42.9455,106.01,105.95,1.34351608]
[1644603854566,38.2295,106.01,105.95,1.34351608]
[1644603855369,45.3125,106.01,105.95,1.34351608]
[1644603855768,4.716,106.0,105.95,1.34351608]
[1644603855967,18.8748,106.0,105.95,1.34351608]
[1644603857369,18.8748,106.0,105.94,7.34351608]
[1644603858375,18.8748,106.0,105.94,1.34351608]
[1644603858376,34.90846791,106.0,105.94,1.34351608]
[1644603858572,34.90846791,106.0,105.93,4.718]
[1644603858971,34.90846791,106.0,105.93,4.742]
[1644603860672,34.90846791,106.0,105.91,1.34351608]
[1644603860872,14.1653,105.97,105.92,0.024]
[1644603861072,37.6377,105.97,105.91,1.36751608]
[1644603862072,37.6377,105.97,105.91,0.024]
[1644603862274,14.1655,105.95,105.91,0.024]
[1644603862475,14.1655,105.95,105.91,6.024]
[1644603862673,13.41838804,105.94,105.91,6.024]
[1644603862873,6.06439994,105.93,105.91,6.024]
[1644603863175,6.06439994,105.93,105.91,6.0]
[1644603864178,6.06439994,105.93,105.9,1.34351608]
[1644603864376,6.06439994,105.93,105.89,1.36751608]
[1644603864577,6.06439994,105.93,105.89,1.34351608]
[1644603865478,6.06439994,105.93,105.89,1.59351608]
[1644603865680,14.1655,105.95,105.89,1.59351608]
[1644603865884,14.1639,105.96,105.9,1.34351608]
[1644603866076,14.1639,105.96,105.9,6.08751608]
[1644603866277,14.1639,105.96,105.9,4.744]
[1644603866878,14.1639,105.96,105.9,6.08751608]
[1644603867478,4.72,105.95,105.9,6.08751608]
[1644603868280,4.72,105.95,105.9,4.744]
[1644603868982,4.72,105.95,105.9,6.08751608]
[1644603869383,4.72,105.95,105.9,4.744]
[1644603869582,4.72,105.95,105.9,6.08751608]
[1644603870896,4.72,105.95,105.9,4.744]
[1644603871187,4.72,105.95,105.9,6.08751608]
[1644603871584,4.72,105.95,105.91,48.51532837]
[1644603871783,14.1639,105.96,105.91,53.48532837]
[1644603872185,14.1639,105.96,105.91,4.97]
[1644603872585,14.1639,105.96,105.91,6.31351608]
[1644603872787,37.6349,105.97,105.91,61.6]
[1644603872986,4.719,105.96,105.91,58.22351608]
[1644603873186,4.719,105.96,105.91,105.88902048]
[1644603873393,23.4724,105.97,105.91,105.88902048]
[1644603873586,24.8203,105.99,105.92,62.63]
[1644603873786,49.0091,105.99,105.92,85.5065]
[1644603873987,49.0091,105.99,105.93,0.024]
[1644603874786,63.169,105.99,105.93,0.024]
[1644603875188,63.169,105.99,105.93,4.742]
[1644603877089,5.21822588,105.98,105.93,6.08551608]
[1644603877290,9.93622588,105.98,105.93,0.024]
[1644603877491,9.93622588,105.98,105.92,86.85001608]
[1644603877688,9.93622588,105.98,105.92,86.60001608]
[1644603878390,9.93622588,105.98,105.93,1.34351608]
[1644603878592,4.718,105.98,105.93,1.36751608]
[1644603879692,4.718,105.98,105.93,1.61751608]
[1644603879991,4.718,105.98,105.93,72.40581608]
[1644603880192,4.718,105.98,105.94,1.34351608]
[1644603880393,24.1888,105.99,105.94,6.06151608]
[1644603880593,24.1888,105.99,105.94,6.31151608]
[1644603880993,24.1888,105.99,105.94,6.06151608]
[1644603882494,38.348,105.99,105.94,6.06151608]
[1644603882896,38.348,105.99,105.94,4.718]
[1644603883295,38.348,105.99,105.94,6.06151608]
[1644603883495,4.718,105.98,105.94,6.06151608]
[1644603883898,38.348,105.99,105.94,6.06151608]
[1644603884497,24.1888,105.99,105.94,62.69151608]
[1644603884695,24.1888,105.99,105.94,62.94151608]
[1644603884895,24.1888,105.99,105.94,62.69151608]
[1644603885297,24.1888,105.99,105.94,62.94151608]
[1644603885697,28.9068,105.99,105.94,72.38101608]
[1644603885997,28.9068,105.99,105.94,1.34351608]
[1644603886596,43.0661,105.99,105.94,1.34351608]
[1644603887496,43.0661,105.99,105.93,1.36751608]
[1644603889196,43.0661,105.99,105.94,1.34351608]
[1644603889397,24.1888,105.99,105.94,1.34351608]
[1644603889621,24.1888,105.99,105.95,1.34351608]
[1644603889796,24.1888,105.99,105.95,1.59351608]
[1644603891001,24.1888,105.99,105.95,6.31151608]
[1644603897008,24.1888,105.99,105.95,6.06151608]
[1644603898026,24.1888,105.99,105.95,1.34351608]
[1644603899528,38.3476,105.99,105.95,1.34351608]
[1644603902932,24.1888,105.99,105.95,1.34351608]
[1644603904632,3.80004825,105.98,105.95,1.34351608]
[1644603904833,4.718,105.97,105.94,1.34351608]
[1644603905033,6.06439994,105.96,105.94,1.34351608]
[1644603905233,4.719,105.95,105.94,1.34351608]
[1644603905432,4.719,105.95,105.93,6.06151608]
[1644603905836,4.719,105.97,105.93,6.06151608]
[1644603906033,4.719,105.97,105.93,6.08551608]
[1644603906234,4.719,105.97,105.93,6.06151608]
[1644603906434,14.1639,105.95,105.93,6.06151608]
[1644603906635,6.06439994,105.94,105.93,1.34351608]
[1644603908735,20.65804764,105.94,105.93,1.34351608]
[1644603909339,6.06439994,105.94,105.93,1.34351608]
[1644603912242,6.06439994,105.94,105.92,1.34351608]
[1644603913640,4.72,105.98,105.93,1.34351608]
[1644603913840,4.72,105.98,105.94,1.34351608]
[1644603914341,14.1618,105.97,105.94,1.34351608]
[1644603915843,14.1618,105.97,105.93,1.36751608]
[1644603916042,14.1618,105.97,105.93,1.34351608]
[1644603917548,18.8802,105.98,105.93,1.34351608]
[1644603917747,14.1602,105.98,105.93,38.4206654]
[1644603918047,23.2237,105.99,105.94,1.34351608]
[1644603918244,23.2237,105.99,105.95,1.34351608]
[1644603918645,0.04204525,106.0,105.95,1.59351608]
[1644603918848,18.91654525,106.01,105.95,1.59351608]
[1644603919047,18.91654525,106.01,105.96,1.34351608]
[1644603920049,18.91654525,106.01,105.96,1.59351608]
[1644603921451,18.91654525,106.01,105.96,1.34351608]
[1644603923155,18.91654525,106.01,105.95,1.34351608]
[1644603923377,25.22256791,106.0,105.95,1.34351608]
[1644603923555,18.8793,105.99,105.95,1.34351608]
[1644603923853,21.26296791,105.99,105.94,1.34351608]
[1644603924053,21.26296791,105.99,105.93,1.36751608]
[1644603924252,5.53520936,105.98,105.93,1.36751608]
[1644603925654,14.1624,105.97,105.93,1.36751608]
[1644603925857,14.1624,105.97,105.93,1.34351608]
[1644603926755,4.719,105.96,105.93,1.34351608]
[1644603926956,6.06439994,105.95,105.93,1.34351608]
[1644603932760,3.03219997,105.95,105.93,1.34351608]
[1644603932960,37.2881,105.98,105.94,1.34351608]
[1644603934162,53.04921024,105.98,105.94,1.34351608]
[1644603935563,57.76721024,105.98,105.94,1.34351608]
[1644603937471,57.76721024,105.98,105.93,1.36751608]
[1644603937671,57.76721024,105.98,105.94,1.34351608]
[1644603939397,57.76721024,105.98,105.93,1.36751608]
[1644603939598,57.76721024,105.98,105.93,1.34351608]
[1644603939898,57.76721024,105.98,105.93,1.36751608]
[1644603940801,71.41721024,105.98,105.93,1.36751608]
[1644603941000,73.80087815,105.98,105.93,1.36751608]
[1644603941300,73.80087815,105.98,105.93,0.024]
[1644603941498,73.80087815,105.98,105.92,1.34351608]
[1644603941697,73.80087815,105.98,105.92,1.36751608]
[1644603945105,71.41721024,105.98,105.92,1.36751608]
[1644603946404,83.26787815,105.98,105.92,0.024]
[1644603946605,83.26787815,105.98,105.91,1.36751608]
[1644603946807,83.26787815,105.98,105.92,6.024]
[1644603947005,83.26787815,105.98,105.92,0.024]
[1644603950811,90.23028481,105.98,105.9,1.36751608]
[1644603951913,170.63,105.97,105.9,0.024]
[1644603952116,2.85665821,105.94,105.89,1.34351608]
[1644603952315,4.72,105.93,105.89,1.34351608]
[1644603953718,14.1692,105.92,105.89,1.34351608]
[1644603953916,6.06439994,105.91,105.88,1.36751608]
[1644603954115,13.49056561,105.9,105.88,1.36751608]
[1644603954318,13.49056561,105.9,105.88,1.34351608]
[1644603955320,6.06439994,105.89,105.88,1.34351608]
[1644603959125,6.06439994,105.89,105.87,1.34351608]
[1644603961825,20.23679994,105.89,105.87,1.34351608]
[1644603962326,20.23679994,105.89,105.86,1.36751608]
[1644603962527,20.23679994,105.89,105.86,1.34351608]
[1644603964653,6.06439994,105.89,105.86,1.34351608]
[1644603964839,47.2274,105.95,105.87,14.44918399]
[1644603965026,47.2274,105.95,105.88,24.65881608]
[1644603965326,47.2274,105.95,105.89,6.06351608]
[1644603965527,4.72,105.94,105.89,6.08751608]
[1644603965727,14.1671,105.93,105.89,6.31351608]
[1644603967328,4.72,105.94,105.89,6.06351608]
[1644603967531,4.72,105.94,105.89,1.34351608]
[1644603968132,4.72,105.94,105.9,67.35]
[1644603968430,4.72,105.94,105.91,1.34351608]
[1644603968631,4.72,105.94,105.92,4.72]
[1644603968830,4.72,105.94,105.92,61.6]
[1644603969030,4.72,105.94,105.92,62.94351608]
[1644603970433,4.72,105.94,105.93,62.63]
[1644603970937,61.62336521,105.99,105.93,62.88]
[1644603971133,61.62336521,105.99,105.93,58.22351608]
[1644603971332,56.90436521,105.99,105.93,58.22351608]
[1644603971535,61.62236521,105.99,105.93,58.22351608]
[1644603973534,61.62236521,105.99,105.93,1.34351608]
[1644603973734,86.00476521,105.99,105.93,1.34351608]
[1644603974034,86.00476521,105.99,105.92,1.36751608]
[1644603974234,86.00476521,105.99,105.92,0.024]
[1644603974635,13.65,105.98,105.92,0.024]
[1644603974837,18.8861,105.97,105.92,0.024]
[1644603975034,32.5361,105.97,105.91,4.742]
[1644603976441,27.8171,105.97,105.91,4.742]
[1644603977742,27.8171,105.97,105.91,0.024]
[1644603977943,50.8572,105.97,105.91,0.024]
[1644603978546,50.8572,105.97,105.91,42.68998631]
[1644603978746,55.5762,105.97,105.91,4.743]
[1644603979546,55.5762,105.97,105.91,6.08651608]
[1644603979764,50.8572,105.97,105.91,6.08651608]
[1644603980166,4.719,105.96,105.91,6.08651608]
[1644603980363,14.1663,105.95,105.91,0.024]
[1644603980565,4.72,105.94,105.91,0.024]
[1644603980766,6.06439994,105.93,105.89,7.34351608]
[1644603980964,4.72,105.92,105.89,1.34351608]
[1644603981166,5.22020324,105.92,105.89,1.34351608]
[1644603982270,0.50020324,105.92,105.89,1.34351608]
[1644603982768,14.66880324,105.92,105.89,1.34351608]
[1644603982967,14.66880324,105.92,105.88,0.024]
[1644603982968,6.06439994,105.91,105.88,1.36751608]
[1644603983368,6.06439994,105.91,105.88,1.34351608]
[1644603984769,20.23499994,105.91,105.88,1.34351608]
[1644603984972,20.23499994,105.91,105.87,1.36751608]
[1644603985169,4.721,105.9,105.87,1.34351608]
[1644603985569,4.721,105.9,105.86,1.36751608]
[1644603986574,4.722,105.91,105.86,1.36751608]
[1644603986772,14.1735,105.89,105.86,1.34351608]
[1644603990276,6.06439994,105.88,105.86,1.34351608]
[1644603992079,19.38044428,105.88,105.86,1.34351608]
[1644603992682,19.38044428,105.88,105.85,1.36751608]
[1644603992979,19.38044428,105.88,105.85,1.34351608]
[1644603993782,33.55434428,105.88,105.85,1.34351608]
[1644603994385,4.722,105.87,105.85,1.34351608]
[1644603994584,4.6907746,105.87,105.83,6.08951608]
[1644603994783,4.6907746,105.87,105.83,6.06551608]
[1644603995685,18.8670746,105.87,105.83,6.06551608]
[1644603996786,18.8670746,105.87,105.82,1.36751608]
[1644603996987,30.2820746,105.87,105.81,1.34351608]
[1644603997187,13.65,105.86,105.81,0.024]
[1644603997386,18.9049,105.85,105.8,1.36751608]
[1644603997586,0.57972411,105.84,105.8,1.36751608]
[1644603997788,4.725,105.83,105.8,1.36751608]
[1644603997987,13.21012329,105.82,105.8,0.024]
[1644603998186,16.24232326,105.82,105.78,1.36751608]
[1644603998390,4.725,105.81,105.78,1.34351608]
[1644603998586,3.03219997,105.8,105.77,0.024]
[1644603998885,3.03219997,105.8,105.76,4.726]
[1644603999087,13.63798459,105.79,105.75,0.024]
[1644604000887,14.187,105.8,105.75,0.024]
[1644604002090,26.60887659,105.81,105.75,0.024]
[1644604002289,26.60887659,105.81,105.75,4.75]
[1644604002488,12.42447659,105.81,105.75,67.38]
[1644604002688,4.727,105.82,105.75,67.63]
[1644604002889,4.727,105.82,105.76,0.024]
[1644604003691,14.1831,105.82,105.76,0.024]
[1644604004294,2.2612173,105.81,105.76,0.024]
[1644604004491,2.2612173,105.81,105.75,67.63]
[1644604005791,14.1831,105.82,105.75,67.63]
[1644604005992,14.1831,105.82,105.76,0.024]
[1644604006692,9.72920695,105.81,105.76,0.024]
[1644604006894,4.726,105.8,105.75,67.38]
[1644604007293,4.726,105.8,105.75,61.63]
[1644604007693,4.726,105.8,105.75,61.38]
[1644604008199,23.91370695,105.81,105.75,56.654]
[1644604008399,4.727,105.83,105.75,61.38]
[1644604008596,4.727,105.83,105.76,62.654]
[1644604009199,18.9097,105.83,105.76,0.024]
[1644604009397,34.94336791,105.83,105.76,0.024]
[1644604010202,10.08003448,105.82,105.76,0.024]
[1644604010406,18.9138,105.81,105.76,0.024]
[1644604010603,2.47221789,105.8,105.75,4.75]
[1644604010805,2.47221789,105.8,105.75,0.024]
[1644604010806,4.727,105.79,105.75,0.024]
[1644604011005,26.06341789,105.8,105.73,56.654]
[1644604011204,4.727,105.79,105.74,6.024]
[1644604011404,9.09477272,105.78,105.74,6.024]
[1644604011605,4.727,105.77,105.74,6.024]
[1644604011803,3.03219997,105.76,105.74,6.024]
[1644604012004,6.06439994,105.76,105.74,6.0]
[1644604012205,9.09477272,105.78,105.76,2.20583883]
[1644604015547,14.1874,105.79,105.76,2.20583883]
[1644604015740,37.7768,105.8,105.76,2.20583883]
[1644604015939,4.728,105.81,105.77,3.03219997]
[1644604016142,24.292,105.82,105.77,3.03219997]
[1644604016543,33.42659023,105.82,105.77,3.03219997]
[1644604017544,33.42659023,105.82,105.77,7.75819997]
[1644604017743,47.60949023,105.82,105.76,2.22983883]
[1644604017942,4.726,105.81,105.76,2.47983883]
[1644604018144,4.726,105.81,105.76,7.20583883]
[1644604018645,4.726,105.81,105.76,63.83583883]
[1644604019144,4.726,105.81,105.76,59.10983883]
[1644604020243,47.60949023,105.82,105.76,63.83583883]
[1644604021245,47.60949023,105.82,105.76,7.20583883]
[1644604021944,47.60949023,105.82,105.76,63.83583883]
[1644604022145,38.4749,105.82,105.76,63.83583883]
[1644604022347,4.726,105.83,105.76,63.83583883]
[1644604022545,51.9965,105.86,105.78,56.63]
[1644604022746,4.726,105.86,105.79,67.379]
[1644604023146,4.726,105.86,105.79,110.33616704]
[1644604023346,14.1785,105.85,105.79,110.33616704]
[1644604023548,14.1785,105.85,105.79,105.61116704]
[1644604024349,16.92893303,105.85,105.79,62.904]
[1644604026349,16.92893303,105.85,105.79,67.629]
[1644604027155,14.1785,105.85,105.79,67.629]
[1644604027352,4.725,105.84,105.79,67.629]
[1644604027652,14.1785,105.85,105.79,81.8065]
[1644604027851,14.1785,105.85,105.79,18.9265]
[1644604028052,4.725,105.84,105.79,0.024]
[1644604028251,14.1815,105.83,105.78,0.024]
[1644604028451,4.725,105.82,105.77,2.70495383]
[1644604028952,11.55720428,105.81,105.77,2.70495383]
[1644604029151,4.726,105.8,105.77,2.70495383]
[1644604030552,4.726,105.8,105.76,0.14797775]
[1644604030553,18.9113,105.8,105.76,0.14797775]
[1644604030756,14.1853,105.8,105.76,0.14797775]
[1644604030955,4.726,105.79,105.76,0.14797775]
[1644604031354,6.07756674,105.78,105.76,0.14797775]
[1644604031556,4.727,105.77,105.76,0.14797775]
[1644604031755,18.9182,105.77,105.76,0.14797775]
[1644604032359,43.2334,105.77,105.76,0.14797775]
[1644604032654,52.4934,105.77,105.76,0.14797775]
[1644604033456,47.7664,105.77,105.76,0.14797775]
[1644604034756,52.4934,105.77,105.76,0.14797775]
[1644604036957,47.7664,105.77,105.76,0.14797775]
[1644604038266,52.4934,105.77,105.76,0.14797775]
[1644604041764,52.4934,105.77,105.76,0.00797775]
[1644604041965,105.88437791,105.77,105.76,0.00797775]
[1644604042168,115.85330591,105.77,105.76,0.00797775]
[1644604045469,92.48326791,105.77,105.76,0.00797775]
[1644604045671,62.4626,105.77,105.76,0.00797775]
[1644604049597,14.1912,105.77,105.76,0.00797775]
[1644604054309,20.26556674,105.78,105.76,0.00797775]
[1644604054509,6.07756674,105.78,105.76,0.00797775]
[1644604054909,4.727,105.79,105.76,0.00797775]
[1644604055610,28.862,105.81,105.77,6.06439994]
[1644604055814,4.727,105.81,105.77,6.06439994]
[1644604056010,12.31030164,105.82,105.77,6.31439994]
[1644604056210,7.58430164,105.82,105.78,0.024]
[1644604056509,7.58430164,105.82,105.77,0.25]
[1644604056712,14.1837,105.81,105.77,0.25]
[1644604057112,14.1837,105.81,105.76,6.28197775]
[1644604057310,4.726,105.8,105.76,6.03197775]
[1644604057514,4.726,105.8,105.76,0.00797775]
[1644604057713,4.726,105.81,105.76,0.00797775]